[Event "Portugal Open 2020"]
[Site "Lisbon"]
[Date "2020.02.01"]
[Round "9.42"]
[White "Sakthivel Heamish Kanha"]
[Black "Fernandes, Joao Pedro Murtinho"]
[Result "1/2-1/2"]
[ECO "B32"]
[WhiteElo "1584"]
[BlackElo "2099"]
[Annotator "NA"]
[PlyCount "56"]
[EventDate "2020.01.25"]
[EventType "swiss"]
[EventCountry "POR"]
[SourceTitle "playchess.com"]
[Source "ChessBase"]
[SourceQuality "1"]
[TimeControl "5400+30"]

1. e4 {[%emt 0:00:00]} c5 {[%emt 0:00:00]} 2. Nf3 {[%emt 0:00:00]} Nc6 {[%emt 0:00:06]} 3. d4 {[%emt 0:00:58]} cxd4 {[%emt 0:00:15]} 4. Nxd4 {[%emt 0:01:03]} Qb6 {[%emt 0:00:20]} 5. Nxc6 {[%emt 0:04:17]} bxc6 {[%emt 0:00:23]} 6. Bd3 {[%emt 0:01:06]} Nf6 {[%emt 0:02:59]} 7. O-O {[%emt 0:01:46]} e5 {[%emt 0:01:17]} 8. c4 {[%emt 0:03:43]} Be7 {[%emt 0:03:50]} 9. Nc3 {[%emt 0:02:00]} d6 {[%emt 0:01:52]} 10. h3 {[%emt 0:02:11]} O-O {[%emt 0:00:37]} 11. Qe2 {[%emt 0:01:30]} Be6 {[%emt 0:05:00]} 12. Be3 {[%emt 0:03:43]} Qb7 {[%emt 0:02:21]} 13. Rad1 {[%emt 0:08:51]} Rad8 {[%emt 0:02:20]} 14. f4 $11 {[%emt 0:09:15]} exf4 {[%emt 0:03:47]} 15. Bxf4 {[%emt 0:00:54]} Nd7 {[%emt 0:05:55]} 16. b3 {[%emt 0:01:57]} Ne5 {[%emt 0:09:00]} 17. Bc2 {[%emt 0:01:00]} Rfe8 {[%emt 0:09:28]} 18. Qf2 {[%emt 0:05:10]} Ng6 {[%emt 0:06:24]} 19. Bg3 {[%emt 0:02:28]} h5 {[%emt 0:11:57]} 20. Kh1 {[%emt 0:01:58]} h4 {[%emt 0:00:57]} 21. Bh2 {[%emt 0:00:16]} Bf6 {[%emt 0:04:31]} 22. Ne2 {[%emt 0:00:34]} Be5 {[%emt 0:04:02]} 23. Nf4 {[%emt 0:00:52]} Nxf4 {[%emt 0:00:46]} 24. Bxf4 {[%emt 0:00:08]} Qe7 {[%emt 0:01:01]} 25. Qe3 {[%emt 0:02:01]} Bf6 {[%emt 0:06:21]} 26. Qd3 {[%emt 0:01:00]} Be5 {[%emt 0:00:36]} 27. Qe3 {[%emt 0:00:19]} Bf6 {[%emt 0:01:00]} 28. Qd3 {[%emt 0:00:06]} Be5 {[%emt 0:00:05]} 1/2-1/2